Cogmind - Beta 15 @@@ ROGUE MODE // 2025.05.06 @ 16:19:15 Player: VVRLD_D35TR0YER Result: Destroyed by G-67 Veteran with Plasma Rifle Performance ------------- Evolutions (6) 3000 Regions Visited (21) 4200 Robots Destroyed (293) 1465 Value Destroyed (10283) 10283 Prototype IDs (44) 880 Alien Tech Used (0) 0 Bonus (2925) 2925 TOTAL SCORE: 22753 Bonus ------- High Alert Combat Kills 1750 Follower Combat Kills 1416 Network Hubs Disabled 400 Met Data Miner 300 Friendly Fire -941 Cogmind --------- Core Integrity 0/1150 Matter 78/300 Energy 100/100 System Corruption 53% Temperature Cool (0) Movement Core (100) Ox1 Location -4/Factory Parts ------- > --- POWER (1) -------- (None) > --- PROPULSION (6) --- (None) > --- UTILITY (8) ------ (None) > --- WEAPON (4) ------- Force Lance > --- INVENTORY (5) ---- Improved Kinecellerator Improved Force Booster Improved Power Shielding Centrium Medium Armor Plating Peak State ------------ > --- POWER ------------ Reinforced Antimatter Reactor > --- PROPULSION ------- Armored Medium Treads Improved Heavy Treads Wheel Wheel Centrium Wheel > --- UTILITY ---------- Improved Heat Sink High-capacity Storage Unit Advanced Signal Interpreter Advanced Targeting Computer Improved Target Analyzer Thermal Shield Improved Hacking Suite Improved Hacking Suite > --- WEAPON ----------- Heavy Wave Gun Light Antimatter Cannon Light Antimatter Cannon Force Lance > --- INVENTORY -------- Improved Heavy Siege Treads Shield Leg Shield Leg Wheel Experimental Heat Sink Experimental Heat Sink Advanced Sensor Array Advanced Terrain Scan Processor Improved Kinecellerator Improved Force Booster Improved Power Shielding Layered Medium Armor Plating Centrium Medium Armor Plating Improved Thermal Defense Suite Advanced System Shield Hardcell Cannon Micro-nuke Launcher Micro-nuke Launcher Point Singularity Launcher [Rating: 111] Favorites ----------- Power Heavy Ion Engine Engine Heavy Ion Engine Power Core Light Nuclear Core Reactor Cold Fusion Reactor Propulsion Light Treads Treads Light Treads Leg Shield Leg Wheel Wheel Hover Unit Improved Gyrokinetic Inverter Flight Unit Cooled Cesium-ion Thruster Utility Huge Storage Unit Device Force Field Storage Huge Storage Unit Processor Improved Signal Interpreter Hackware Improved Hacking Suite Protection Medium Armor Plating Weapon EM Pulse Gun Energy Gun EM Pulse Gun Energy Cannon Long-range Proton Cannon Ballistic Gun Improved Assault Rifle Ballistic Cannon Improved Light Cannon Launcher Advanced EMP Blaster Special Weapon Improved Plasma Cutter Impact Weapon Power Maul Slashing Weapon Greatsword Piercing Weapon Heavy Pick Special Melee Weapon Advanced Datajack Build | -11 -10 -10 -9 -9 -8 -7 -7 -7 -7 -6 -6 -5 -5 -5 -5 -5 -5 -5 -4 -4 -4 ------- Run | Yrd Mat Min Mat Min Mat Fac Low Low Dat Pro Fac Fac Was Fac Ext Cet Arc Hub Fac Was Fac Slots Evolved 12 | . . . 2 . 2 2 . . . . 2 2 . . . . . . 2 . . Power . | . . . . . . . . . . . . . . . . . . . . . . Propulsion 4 | . . . 2 . 1 . . . . . . 1 . . . . . . . . . Utility 6 | . . . . . 1 2 . . . . 1 . . . . . . . 2 . . Weapon 2 | . . . . . . . . . . . 1 1 . . . . . . . . . Parts Attached 217 | 6 14 1 16 12 18 19 9 2 . 9 17 5 10 1 11 6 2 11 10 . 38 Power 17 | 1 2 . 2 1 1 2 2 . . . 2 . 1 . . 1 . . . . 2 Engine 12 | 1 1 . 2 1 1 2 2 . . . 1 . . . . . . . . . 1 Core 1 | . 1 . . . . . . . . . . . . . . . . . . . . Reactor 4 | . . . . . . . . . . . 1 . 1 . . 1 . . . . 1 Propulsion 58 | 2 2 . 7 4 9 2 1 . . . 2 2 6 . 5 . . 2 1 . 13 Treads 40 | . 2 . 7 4 9 2 1 . . . . 1 5 . 5 . . 2 . . 2 Leg 6 | 2 . . . . . . . . . . . . 1 . . . . . . . 3 Wheel 7 | . . . . . . . . . . . . . . . . . . . . . 7 Hover 3 | . . . . . . . . . . . . 1 . . . . . . 1 . 1 Flight 2 | . . . . . . . . . . . 2 . . . . . . . . . . Utility 85 | 1 4 . 3 4 4 10 5 2 . 5 9 2 2 . 4 2 2 8 7 . 11 Device 33 | . 1 . . 1 1 4 2 1 . 1 4 2 1 . . 1 1 4 3 . 6 Storage 6 | 1 2 . 1 . . 1 . . . 1 . . . . . . . . . . . Processor 10 | . . . . . . . 1 . . 2 2 . . . . . . . 2 . 3 Hackware 3 | . . . . . . . . . . . . . . . . . . . 2 . 1 Protection 33 | . 1 . 2 3 3 5 2 1 . 1 3 . 1 . 4 1 1 4 . . 1 Artifact . | . . . . . . . . . . . . . . . . . . . . . . Weapon 57 | 2 6 1 4 3 4 5 1 . . 4 4 1 1 1 2 3 . 1 2 . 12 Energy Gun 14 | 1 4 1 . . . 1 1 . . 1 . . . . . 1 . 1 . . 3 Energy Cannon 3 | . 1 . . . . . . . . . . . . . 1 . . . . . 1 Ballistic Gun 7 | 1 . . . 2 1 1 . . . . 2 . . . . . . . . . . Ballistic Cannon 10 | . . . 3 . . . . . . . . . . . . 2 . . 1 . 4 Launcher 14 | . 1 . 1 1 3 3 . . . 1 . . 1 . 1 . . . . . 2 Special Weapon 1 | . . . . . . . . . . . . . . . . . . . . . 1 Impact Weapon 4 | . . . . . . . . . . 2 1 1 . . . . . . . . . Slashing Weapon 1 | . . . . . . . . . . . 1 . . . . . . . . . . Piercing Weapon 2 | . . . . . . . . . . . . . . 1 . . . . . . 1 Special Melee Weapon 1 | . . . . . . . . . . . . . . . . . . . 1 . . Unidentified Prototypes 16 | . . . 1 . 1 3 . . . . 2 . 2 . . 1 1 2 1 . 2 Parts Lost 71 | . 2 1 2 . 1 8 6 . . 10 1 . . . 1 . . 12 7 . 20 Power 3 | . . . . . . . 1 . . . . . . . . . . . . . 2 Propulsion 22 | . . . . . . 3 2 . . 3 . . . . . . . 4 1 . 9 Utility 30 | . . . 2 . . 4 3 . . 6 1 . . . 1 . . 5 4 . 4 Weapon 16 | . 2 1 . . 1 1 . . . 1 . . . . . . . 3 2 . 5 Highest Loss Streak 7 | . 1 1 1 . 1 4 5 . . 5 1 . . . 1 . . 7 5 . 4 To Critical Strikes 4 | . . . . . 1 1 . . . . . . . . . . . . 2 . . Average Backups 16 | 3 12 14 18 24 24 23 22 23 25 20 4 4 8 14 15 14 14 14 9 4 9 Power 1 | . . 1 1 1 1 1 1 1 1 . . 1 1 2 2 2 2 2 1 . . Propulsion 1 | 3 4 4 2 3 1 2 . . . . . 1 . 2 2 3 3 2 . 1 2 Utility 8 | . 2 5 9 13 14 12 12 11 13 10 2 1 4 8 8 7 7 7 5 2 4 Weapon 5 | . 4 4 5 7 7 6 7 11 11 8 2 1 1 2 3 2 2 1 1 1 1 Tool/Special . | . . . . . . . . . . . . . . . . . . . . . . Unused Backups 52 | . 7 2 3 2 8 . . . . 9 1 . . . 5 . 2 . 3 2 8 Power 2 | . . . 1 . . . . . . . . . . . 1 . . . . . . Propulsion 3 | . 3 . . . . . . . . . . . . . . . . . . . . Utility 31 | . 1 1 . 1 2 . . . . 7 1 . . . 3 . 2 . 3 2 8 Weapon 15 | . 3 1 2 1 6 . . . . 1 . . . . 1 . . . . . . Tool/Special 1 | . . . . . . . . . . 1 . . . . . . . . . . . Average Slot Usage (%) 85 | . 97 99 99 100 99 96 82 84 69 69 56 68 76 82 80 81 82 75 71 41 78 Engine 4 | . 2 . 9 11 9 7 6 7 7 6 . 5 1 . . . . . . . 1 Core 1 | . 11 14 1 . . . . . . . . . . . . . . . . . . Reactor 1 | . . . . . . . . . . . . . 3 5 5 5 5 5 5 1 1 Treads 24 | . 23 28 43 44 44 35 22 23 23 14 . 2 15 23 23 23 23 21 8 5 8 Device 7 | . 4 . . 4 8 12 11 14 7 5 12 16 11 11 7 10 10 11 12 3 7 Storage 7 | . 14 14 11 11 9 7 7 7 7 6 . . 4 5 5 5 5 5 4 1 3 Processor 3 | . . . . . . . 5 7 7 4 17 5 5 5 3 . . . 4 5 12 Hackware 1 | . . . . . . . . . . . . . . . . . . . 9 10 10 Protection 10 | . 8 14 10 6 9 16 10 7 15 17 5 5 8 11 14 17 17 13 7 1 2 Energy Gun 4 | . 23 27 3 . . . 2 6 . 6 . . . . . . . . . . 2 Ballistic Gun 3 | . 2 . . 12 5 9 9 6 . . 7 . . . . . . . . . . Ballistic Cannon 3 | . . . 18 . 12 . . . . . . . . . . 10 11 9 4 1 5 Launcher 1 | . . . . 8 . 4 2 1 . 1 . . . . 2 . . . . . . Impact Weapon 1 | . . . . . . . . . . 4 6 11 11 9 2 . . . . . . Piercing Weapon 1 | . . . . . . . . . . . . . . 1 5 5 5 4 3 . 2 Peak Build Rating 111 | 6 10 10 17 19 36 46 42 41 35 40 49 63 90 82 91 103 102 100 100 69 111 Average Rating 44 | 3 9 9 14 18 27 40 37 37 31 32 31 54 69 80 83 98 99 93 87 45 84 On Entrance 44 | . 6 10 10 17 19 36 42 37 39 31 7 45 63 80 82 91 100 100 50 69 37 Naked Turns 7 | . . . . . . . . . . 4 . . . . . . . . . . 3 Heaviest Build 132 | 14 31 30 97 103 106 129 129 118 106 132 27 28 81 81 101 119 119 120 92 78 100 Greatest Support 200 | 20 40 40 80 80 123 123 98 76 76 76 12 12 195 186 200 200 200 197 110 30 102 Greatest Overweight (x) 38 | . . . 1 1 1 2 2 1 1 38 4 2 2 . . . . . 2 2 26 Average Overweight (x) . | . . . . 1 . . 1 1 1 2 2 1 . . . . . . . . 1 Largest Inventory Capacity 25 | 8 15 15 25 25 25 25 25 25 25 25 5 5 20 20 20 20 20 20 20 20 20 Average Capacity 20 | 5 13 15 23 25 25 25 25 25 25 23 5 5 17 20 20 20 20 20 19 8 14 Most Carried 25 | 6 15 15 25 25 25 25 24 25 25 25 5 5 18 20 20 20 20 20 14 5 20 Average Carried 17 | 4 12 14 18 24 24 23 21 23 25 20 4 4 11 18 19 19 19 18 10 4 9 Final Capacity 25 | 8 15 15 25 25 25 25 25 25 25 5 5 5 20 20 20 20 20 20 20 5 5 Final Carried 25 | 6 15 15 24 25 25 23 22 25 25 5 5 5 18 20 20 20 20 12 5 5 4 Class Distribution -------------------- 73% | Mutant 9% | Scavenger-Mutant 5% | Scavenger-Tank 5% | Hacker-Mutant Dominant Class ---------------- Mutant | -10/Materials Mutant | -10/Mines Mutant | -9/Materials Mutant | -9/Mines Mutant | -8/Materials Mutant | -7/Factory Mutant | -7/Lower Caves Mutant | -7/Lower Caves Mutant | -7/Data Miner Mutant | -6/Proximity Caves Mutant | -6/Factory Mutant | -5/Factory Mutant | -5/Waste Mutant | -5/Factory Scavenger-Mutant | -5/Extension Scavenger-Tank | -5/Cetus Scavenger-Tank | -5/Archives Scavenger-Tank | -5/Hub_04(d) Scavenger-Mutant | -4/Factory Hacker-Mutant | -4/Waste Hacker-Mutant | -4/Factory Resources | -11 -10 -10 -9 -9 -8 -7 -7 -7 -7 -6 -6 -5 -5 -5 -5 -5 -5 -5 -4 -4 -4 ----------- Run | Yrd Mat Min Mat Min Mat Fac Low Low Dat Pro Fac Fac Was Fac Ext Cet Arc Hub Fac Was Fac Matter Collected 9003 | 210 363 10 795 435 1094 1204 454 92 . 577 72 . 362 22 320 235 419 960 340 . 1039 Remotely 551 | . . . . . . . . . . . . . . . . . . 551 . . . Salvage Created 9513 | . 781 99 911 157 1002 1537 191 . . 475 264 . 100 . 624 99 392 973 328 . 1580 Parts 472 | . 33 7 53 8 62 80 7 . . 11 9 . 2 . 32 1 26 53 23 . 65 Haulers Intercepted 17 | . 2 . 4 . 3 3 . . . . 1 . . . . . . 2 . . 2 Recyclers Shooed 4 | . . . 1 . . 1 . . . . . . . . . . . . 1 . 1 Parts Field Recycled . | . . . . . . . . . . . . . . . . . . . . . . Retrieved Matter . | . . . . . . . . . . . . . . . . . . . . . . Parts Self-Destructed 27 | . . . . . . . 12 3 . 12 . . . . . . . . . . . Prevented 6 | . . . . . . . 2 . . 4 . . . . . . . . . . . Kills | -11 -10 -10 -9 -9 -8 -7 -7 -7 -7 -6 -6 -5 -5 -5 -5 -5 -5 -5 -4 -4 -4 ------- Run | Yrd Mat Min Mat Min Mat Fac Low Low Dat Pro Fac Fac Was Fac Ext Cet Arc Hub Fac Was Fac Combat Hostiles Destroyed 185 | . 13 2 16 12 29 24 4 . . 10 1 . . . 12 1 4 21 4 . 32 Melee 17 | . . . . . 2 3 1 . . 1 1 . . . 1 . . 2 . . 6 Guns 18 | . 3 2 . . 1 5 3 . . 2 . . . . . . . . . . 2 Cannons 59 | . 6 . 14 3 11 . . . . . . . . . . 1 4 9 4 . 7 AOE 85 | . 4 . 2 9 14 16 . . . 3 . . . . 11 . . 9 . . 17 Classes Destroyed 19 | . 5 . 6 1 1 2 . . . . . . 1 . . . . 3 . . . Worker 24 | . . . 1 1 1 4 . . . . 1 . . . 2 . . 11 2 . 1 Builder 23 | . . . 1 . 8 3 . . . . . . . . 2 . . 3 1 . 5 Tunneler 7 | . . . . . 1 1 . . . . . . . . 2 . . 2 . . 1 Hauler 17 | . 2 . 4 . 3 3 . . . . 1 . . . . . . 2 . . 2 Recycler 18 | . 2 . 4 . 2 4 . . . . 1 . . . 1 . . 2 1 . 1 Mechanic 4 | . . . . . . 3 . . . . . . . . 1 . . . . . . Operator 12 | . 1 . 1 . 1 . . . . . . . . . . . 7 2 . . . Watcher 9 | . 2 . 2 . 1 2 . . . . . . . . . 1 . 1 . . . Swarmer 33 | . . . 1 . 10 2 . . . 3 . . . . 4 . . 5 . . 8 Saboteur 1 | . . . . . . . . . . . . . . . . . . 1 . . . Grunt 89 | . 13 2 10 2 15 16 2 . . 6 . . . . 6 . . 7 . . 10 Brawler 4 | . . . 1 1 . 2 . . . . . . . . . . . . . . . Duelist 6 | . . . 1 . 2 . 1 . . 1 . . . . 1 . . . . . . Protector 1 | . . . . . . . . . . . . . . . . . . 1 . . . Sentry 18 | . . . 3 . 2 2 . . . . 1 . . . 1 . 4 3 1 . 1 Programmer 21 | . . . . . . 2 1 . . . . . . . . . . 2 3 . 13 Cetus Guard 1 | . . . . . . . . . . . . . . . . 1 . . . . . Lightning 2 | . . . . . . . . . . . . . . . . . . 2 . . . Assembled 9 | . . . . 9 . . . . . . . . . . . . . . . . . Wasp 1 | . . . . . . . . . . . . . 1 . . . . . . . . Thug 1 | . . . . . . . . . . . . . . . . 1 . . . . . Martyr 1 | . . . . . . . . . . . . . 1 . . . . . . . . Best Kill Streak 31 | . 3 2 4 3 8 8 3 . . 3 2 . . . 6 2 5 31 2 . 8 Combat Bots Only 13 | . 2 2 3 3 4 4 3 . . 3 1 . . . 5 1 2 13 2 . 7 Max Kills in Single Turn 7 | . 2 1 3 2 6 7 1 . . 2 1 . 1 . 5 1 1 7 1 . 5 Gunslinging . | . . . . . . . . . . . . . . . . . . . . . . Exploded 5 | . 2 . 2 1 2 4 . . . 2 . . . . 5 . . 3 . . 4 Melee 1 | . . . . . 1 1 1 . . 1 1 . . . 1 . . 1 . . 1 Uniques/NPCs Destroyed . | . . . . . . . . . . . . . . . . . . . . . . Combat | -11 -10 -10 -9 -9 -8 -7 -7 -7 -7 -6 -6 -5 -5 -5 -5 -5 -5 -5 -4 -4 -4 -------- Run | Yrd Mat Min Mat Min Mat Fac Low Low Dat Pro Fac Fac Was Fac Ext Cet Arc Hub Fac Was Fac Hostile Shots Fired 1483 | . 53 11 83 24 102 186 67 . . 135 4 . . 18 49 10 24 243 65 . 409 Missed 393 | . 14 3 28 8 30 70 19 . . 40 1 . . 7 15 5 2 33 24 . 94 Deflected 5 | . . . . . . . . . . . . . . . . . . . . . 5 Hits 1090 | . 39 8 55 16 72 116 48 . . 95 3 . . 11 34 5 22 210 41 . 315 Melee 32 | . . . . 1 . 10 12 . . 1 . . . . . . . 8 . . . Projectile 1058 | . 39 8 55 15 72 106 36 . . 94 3 . . 11 34 5 22 202 41 . 315 Critical Strikes 61 | . 1 . . . 3 8 5 . . 6 1 . . . . . . 9 4 . 24 Actively Blocked 1 | . . . . . . 1 . . . . . . . . . . . . . . . Part Disruptions 2 | . . . . . . 1 . . . . . . . . . . . . . . 1 Damage Taken 19841 | . 549 116 637 394 789 1725 963 . . 1461 201 . 46 142 1022 65 507 4740 841 16 5627 Core 2363 | . 62 . 36 19 41 185 179 . . 179 . . 17 9 41 . 15 410 126 . 1044 Absorbed by Shields 950 | . . . . 4 169 223 61 . . . . . . 70 121 39 82 117 64 . . Reduced by Siege Mode 155 | . . . . . . . . . . . . . . . . . 32 63 . . 60 Redirected to Shielding 233 | . . 8 111 24 . 54 . . . . 20 . . . 16 . . . . . . Ignored by Resistances 1394 | . . . . . . . 22 . . 78 . . . . 18 . 15 744 . . 517 Regen/Repaired (Parts) 2463 | . 143 . 146 . . . . . . . . . 25 70 241 53 190 48 929 . 618 Core Remaining (%) 75 | 100 . 75 . 86 92 . . . . 22 100 . . . . . . 50 . . . Volleys Fired 572 | . 63 6 81 17 88 73 20 . . 21 . . . . 10 8 17 62 27 . 79 Largest 3 | . 2 2 2 2 2 2 2 . . 2 . . . . 1 2 2 2 1 . 3 Hottest 230 | . 80 80 80 66 72 72 105 . . 230 . . . . 81 112 112 112 51 . 186 Shots Fired 972 | . 120 11 161 34 165 126 37 . . 36 . . . . 10 17 34 85 27 . 109 Gun 286 | . 93 11 4 2 10 94 32 . . 13 . . . . . . . . . . 27 Cannon 547 | . 21 . 156 12 136 1 . . . . . . . . 3 17 34 69 27 . 71 Launcher 139 | . 6 . 1 20 19 31 5 . . 23 . . . . 7 . . 16 . . 11 Special . | . . . . . . . . . . . . . . . . . . . . . . Kinetic 672 | . 21 . 156 14 146 95 27 . . . . . . . . 17 34 69 27 . 66 Thermal 66 | . 21 . . . . . 5 . . 13 . . . . . . . . . . 27 Explosive 98 | . 6 . 1 20 14 19 . . . 4 . . . . 7 . . 16 . . 11 Electromagnetic 136 | . 72 11 4 . 5 12 5 . . 19 . . . . 3 . . . . . 5 Robot Hit Streak 13 | . 13 3 8 6 8 13 11 . . 9 . . . . 3 7 7 13 10 . 7 Robot Miss Streak 8 | . 6 2 8 4 7 4 3 . . 2 . . . . 2 2 2 3 4 . 2 Penetration Max 1 | . . . . . . . . . . . . . . . . 1 . 1 1 . . Secondary Targets . | . . . . . . . . . . . . . . . . . . . . . . Shots Hit Robots 585 | . 57 6 82 11 70 70 22 . . 22 5 . 5 1 15 11 22 66 21 . 99 Core Hits 490 | . 26 4 34 19 54 76 8 . . 17 3 . . . 35 4 15 99 12 . 84 Critical Kills . | . . . . . . . . . . . . . . . . . . . . . . Critical Parts Destroyed 3 | . 1 . . . . . . . . . . . 2 . . . . . . . . Critical Strikes 44 | . 1 . 5 1 6 . . . . . . . 2 . 1 1 1 10 5 . 11 Burn 2 | . . . . . . . . . . . . . . . . . . . . . 2 Destroy 1 | . 1 . . . . . . . . . . . . . . . . . . . . Blast 31 | . . . 5 1 6 . . . . . . . . . . 1 1 9 5 . 3 Smash 2 | . . . . . . . . . . . . . 2 . . . . . . . . Impale 8 | . . . . . . . . . . . . . . . 1 . . 1 . . 6 Melee Attacks 194 | . . . . . . . . . . 16 10 1 16 10 22 4 8 15 21 . 71 Impact 45 | . . . . . . . . . . 16 6 1 13 3 6 . . . . . . Slashing 15 | . . . . . . . . . . . 4 . 3 5 3 . . . . . . Piercing 134 | . . . . . . . . . . . . . . 2 13 4 8 15 21 . 71 Sneak Attacks 37 | . . . . . . . . . . . 3 . 5 1 5 . 8 5 5 . 5 Combat Hostiles . | . . . . . . . . . . . . . . . . . . . . . . Follow-up Attacks 1 | . . . . . . . . . . . . . . . 1 . . . . . . Damage Inflicted 35955 | . 1378 86 2097 677 3427 4070 668 . . 1536 431 . 347 98 2256 799 1934 7704 1188 . 7259 Guns 2854 | . 605 86 18 13 98 1056 413 . . 223 . . . . . . . . . . 342 Cannons 11105 | . 208 . 1886 109 1374 . . . . . . . . . . 799 1413 2727 769 . 1820 Explosions 17004 | . 562 . 161 555 1899 2808 248 . . 1042 . . . . 1762 . . 4482 93 . 3392 Melee 4658 | . . . . . . . . . . 261 431 . 347 98 494 . 521 478 323 . 1705 Ramming 334 | . 3 . 32 . 56 206 7 . . 10 . . . . . . . 17 3 . . Kinetic 12476 | . 140 . 1886 122 1472 1056 300 . . . . . . . . 799 1413 2727 769 . 1792 Thermal 2218 | . 417 . . . . 761 113 . . 223 . . . . . . . . . . 704 Explosive 11998 | . 353 . 161 555 1618 1334 . . . 407 . . . . 1762 . . 3263 93 . 2452 Electromagnetic 4271 | . 465 86 18 . 281 713 248 . . 635 . . . . . . . 1219 . . 606 Impact 731 | . . . . . . . . . . 261 114 . 257 . 99 . . . . . . Slashing 505 | . . . . . . . . . . . 317 . 90 98 . . . . . . . Piercing 3422 | . . . . . . . . . . . . . . . 395 . 521 478 323 . 1705 Highest Corruption 53 | . . . . . . 14 16 16 16 16 2 . . 1 5 5 5 20 8 15 53 Average Corruption 12 | . . . . . . 5 15 16 16 16 2 . . 1 4 5 5 7 3 13 22 Corruption Purged 5 | . . . . . . . . . . . . . . . . . . 5 . . . Corruption Blocked . | . . . . . . . . . . . . . . . . . . . . . . Effects 423 | . . . . . . 27 55 31 9 104 8 . . 1 23 9 13 11 9 8 115 Message Errors 103 | . . . . . . 5 14 10 1 30 1 . . 1 6 4 3 3 3 3 19 Matter Fused 102 | . . . . . . 10 11 8 3 27 3 . . . 8 1 4 2 1 . 24 Heat Flow Errors 45 | . . . . . . 3 4 5 1 10 1 . . . 4 . 2 3 1 . 11 Energy Discharges 46 | . . . . . . 3 7 5 1 9 1 . . . 2 1 . 1 4 1 11 Parts Rejected 7 | . . . . . . . . . . 2 . . . . . . 1 . . . 4 Parts Fused 4 | . . . . . . . . . . 1 . . . . . . . . . . 3 Data Loss (minor) 48 | . . . . . . 4 7 3 2 16 . . . . 3 1 1 . . . 11 Data Loss (major) 23 | . . . . . . 1 3 . . 5 2 . . . . 1 2 . . . 9 Misfires 14 | . . . . . . . 4 . . 1 . . . . . 1 . 1 . . 7 Alerts 6 | . . . . . . . 2 . 1 2 . . . . . . . . . . 1 Misdirections 11 | . . . . . . 1 . . . 1 . . . . . . . . . 4 5 Weapon Failures 14 | . . . . . . . 3 . . . . . . . . . . 1 . . 10 Overload Shots 3 | . . . . . . . . . . 3 . . . . . . . . . . . Effects 1 | . . . . . . . . . . 1 . . . . . . . . . . . Energy Bleed 1 | . . . . . . . . . . 1 . . . . . . . . . . . Overflow Damage 2139 | . 23 . 32 20 159 54 . . . 127 99 . 230 28 197 111 86 340 120 . 513 Projectiles 512 | . . . 32 . 2 . . . . . . . 21 . . 111 . 147 56 . 143 Explosions 688 | . 23 . . 20 150 54 . . . 43 . . . . 55 . . 108 29 . 206 Melee 939 | . . . . . 7 . . . . 84 99 . 209 28 142 . 86 85 35 . 164 Knockbacks 68 | . . . 15 1 15 . . . . 2 . . 3 . . 5 1 10 5 . 11 Impact 4 | . . . . . . . . . . 2 . . 2 . . . . . . . . Kinetic 60 | . . . 15 1 14 . . . . . . . . . . 3 1 10 5 . 11 Secondary 4 | . . . . . 1 . . . . . . . 1 . . 2 . . . . . Self-Inflicted Damage 1299 | . 27 . . 181 20 213 62 . . 37 . . . . 2 . . 432 88 . 237 Shots 41 | . 2 . . 7 2 9 3 . . 2 . . . . 1 . . 9 1 . 5 Rammed 31 | . 2 . 5 . 2 15 1 . . 1 . . . . . . . 3 2 . . Targets Rammed 42 | . 2 . 5 . 7 19 2 . . 2 . . . . . . . 3 2 . . Kicked . | . . . . . . . . . . . . . . . . . . . . . . Crushed 11 | . . . . . 5 4 1 . . 1 . . . . . . . . . . . Highest Temperature 585 | . 135 127 60 60 90 284 279 282 216 585 185 . . . 205 54 313 398 279 . 319 Average Temperature 69 | . 29 55 21 17 35 44 93 120 192 112 90 . . . 74 25 142 60 197 . 94 Received Heat Transfer 3548 | . 291 66 294 60 365 368 219 . . 369 12 . . . 150 . 40 961 67 . 286 Effects 14 | . . . . . . . 3 . . 6 . . . . . . . . 2 . 3 Shutdowns 2 | . . . . . . . . . . 2 . . . . . . . . . . . Energy Bleed 2 | . . . . . . . . . . 2 . . . . . . . . . . . Interference 8 | . . . . . . . 3 . . . . . . . . . . . 2 . 3 Matter Decay 1 | . . . . . . . . . . 1 . . . . . . . . . . . Short Circuit 1 | . . . . . . . . . . 1 . . . . . . . . . . . Siege Activations 8 | . . . . . . . . . . . . . . . . 1 3 3 . . 1 Total Turns 176 | . . . . . . . . . . . . . . . . 32 48 65 . . 31 Longest Duration 52 | . . . . . . . . . . . . . . . . 32 27 52 . . 31 Martial Activations . | . . . . . . . . . . . . . . . . . . . . . . Shielding Activations 5 | . . . . . . . . . . . . . . . . . . . . . 5 Total Turns 64 | . . . . . . . . . . . . . . . . . . . . . 64 Longest Duration 26 | . . . . . . . . . . . . . . . . . . . . . 26 Robots Disrupted 2 | . . . . . . . . . . 1 . . . . . . . . . . 1 Combat Hostiles 2 | . . . . . . . . . . 1 . . . . . . . . . . 1 Robots Corrupted 12 | . 1 . . . 2 . . . . 5 . . 2 . . . . 2 . . . Combat Hostiles 6 | . . . . . 1 . . . . 5 . . . . . . . . . . . Parts Fried 24 | . 3 . . . 6 1 1 . . 2 1 . 1 . . . . 3 . . 6 Impact Corruptions 13 | . . . . . 1 . . . . 4 2 . 4 . 1 1 . . . . . Robots Melted . | . . . . . . . . . . . . . . . . . . . . . . Combat Hostiles . | . . . . . . . . . . . . . . . . . . . . . . Parts Melted 4 | . . . . . . . 2 . . . . . . . . 1 . . . . 1 Heat Transferred 2710 | . 644 . . . . 400 250 . . 437 . . . . . . . . . . 979 Parts Sabotaged . | . . . . . . . . . . . . . . . . . . . . . . Parts Stolen . | . . . . . . . . . . . . . . . . . . . . . . Parts Stripped . | . . . . . . . . . . . . . . . . . . . . . . Power Chain Reactions 6 | . 3 . . . 1 . . . . . . . . . . . . 1 . . 1 Alert | -11 -10 -10 -9 -9 -8 -7 -7 -7 -7 -6 -6 -5 -5 -5 -5 -5 -5 -5 -4 -4 -4 ------- Run | Yrd Mat Min Mat Min Mat Fac Low Low Dat Pro Fac Fac Was Fac Ext Cet Arc Hub Fac Was Fac Maximum Alert Level 4 | . 1 . 1 . 2 3 . . . . . . . 1 4 3 1 3 1 . 4 Low Security (%) 60 | 100 82 100 91 100 31 10 . . . . 100 100 100 70 23 . 9 79 38 100 25 Level 1 16 | . 17 . 8 . 54 12 . . . . . . . 29 8 . 90 2 61 . 2 Level 2 8 | . . . . . 14 41 . . . . . . . . 15 94 . 8 . . . Level 3 13 | . . . . . . 35 . . . . . . . . 42 5 . 9 . . 58 Level 4 2 | . . . . . . . . . . . . . . . 8 . . . . . 13 Level 5 . | . . . . . . . . . . . . . . . . . . . . . . High Security . | . . . . . . . . . . . . . . . . . . . . . . Max Security . | . . . . . . . . . . . . . . . . . . . . . . Peak Influence 1273 | . 268 30 277 139 496 1049 . . . . 83 12 28 241 1268 700 311 819 388 15 1273 Initial 700 | . . . . 69 . 214 . . . . 83 6 . . 84 700 214 63 388 15 . Average 258 | . 111 1 89 10 248 667 . . . . 17 . 1 133 609 614 252 187 201 4 641 Influence Increases 10123 | . 547 50 642 140 935 1412 145 . . 345 102 14 72 299 1676 127 192 1125 334 . 1966 Destroy 0b10 Robot/C 4200 | . 260 40 320 60 580 580 80 . . 240 20 . . 120 620 80 80 400 80 . 640 Destroy 0b10 Robot/NC 610 | . 35 . 65 5 85 105 . . . 5 15 . . . 65 5 35 120 20 . 50 Destroy Leader 824 | . 58 10 102 10 108 130 20 . . 40 12 . . 10 76 . . 84 30 . 134 Allied During Kill 877 | . . . . . . 2 . . . 30 10 . . 117 696 21 1 . . . . Successful Hack 177 | . 15 . 24 . 23 . . . . . 8 12 . 12 . 7 . . 51 . 25 Select Force Hacks 50 | . . . . . . . . . . . . . . . . . . 50 . . . Disable Machine 1275 | . 30 . . . 45 375 . . . . 15 . . . 15 . 60 90 45 . 600 Destroy Structure 1645 | . 44 . 26 65 94 175 . . . . 7 2 72 40 204 14 16 336 108 . 442 Lose Combat Pursuer 465 | . 105 . 105 . . 45 45 . . 30 15 . . . . . . 45 . . 75 Influence Decreases 8852 | . 547 50 464 318 463 896 885 248 . 212 221 28 72 126 599 840 547 514 1083 44 695 Entered New Map 2355 | . . . . 109 . 258 367 48 . . 50 8 . . 89 550 323 119 405 29 . Time Decay 5258 | . 527 40 294 180 453 518 458 200 . 202 141 20 52 126 440 170 214 265 458 15 485 Lost Part 620 | . 20 10 20 . 10 80 60 . . 10 10 . . . 10 . . 120 70 . 200 Lost Ally 319 | . . . . 29 . 40 . . . . 20 . 20 . 60 120 10 10 . . 10 Purge Threat 300 | . . . 150 . . . . . . . . . . . . . . . 150 . . Squads Dispatched 53 | . 3 . 2 . 3 12 . . . . 3 1 . 4 3 . . 6 4 . 12 Investigation 10 | . 1 . 1 . 1 1 . . . . 1 . . 3 1 . . 1 . . . Extermination 9 | . . . . . . 1 . . . . . . . 1 . . . 1 2 . 4 Reinforcement 23 | . 2 . 1 . 2 5 . . . . 2 1 . . 1 . . 2 2 . 5 Assault 8 | . . . . . . 5 . . . . . . . . 1 . . 2 . . . Garrison 3 | . . . . . . . . . . . . . . . . . . . . . 3 Intercept . | . . . . . . . . . . . . . . . . . . . . . . Searches Triggered . | . . . . . . . . . . . . . . . . . . . . . . Data Miner Redirects 3 | . . . . . . . . . . . . . . . 1 . . 2 . . . Construction Impeded 9 | . . . . . 2 2 . . . . . . . . 1 . . 1 1 . 2 Haulers Reinforced 2 | . . . . . . . . . . . . . . . . . . . . . 2 Active Scanning Responses . | . . . . . . . . . . . . . . . . . . . . . . Cargo Convoy Interrupts . | . . . . . . . . . . . . . . . . . . . . . . Stealth | -11 -10 -10 -9 -9 -8 -7 -7 -7 -7 -6 -6 -5 -5 -5 -5 -5 -5 -5 -4 -4 -4 --------- Run | Yrd Mat Min Mat Min Mat Fac Low Low Dat Pro Fac Fac Was Fac Ext Cet Arc Hub Fac Was Fac Distress Signals 29 | . 6 . 6 . 3 1 . . . . . . . . 3 1 . 5 . . 4 Communications Jammed . | . . . . . . . . . . . . . . . . . . . . . . Distress Signals . | . . . . . . . . . . . . . . . . . . . . . . Times Spotted 347 | . 28 2 38 15 32 50 7 . . 14 4 . 7 9 34 5 7 40 8 5 42 Peak Tracking Total 12 | . 5 2 6 3 4 9 3 . . 4 2 1 3 6 6 5 1 12 3 5 6 Tactical Retreats 27 | . 4 . 5 2 . 3 2 . . 2 1 . 1 . . . . 2 . . 5 Traps | -11 -10 -10 -9 -9 -8 -7 -7 -7 -7 -6 -6 -5 -5 -5 -5 -5 -5 -5 -4 -4 -4 ------- Run | Yrd Mat Min Mat Min Mat Fac Low Low Dat Pro Fac Fac Was Fac Ext Cet Arc Hub Fac Was Fac Traps Triggered 16 | . 1 . . . . 2 . . . . 2 1 . 1 3 . . 3 1 . 2 Indirectly . | . . . . . . . . . . . . . . . . . . . . . . Trap Hack Attempts . | . . . . . . . . . . . . . . . . . . . . . . Triggered . | . . . . . . . . . . . . . . . . . . . . . . Disarmed 3 | . . . . . . . . . . . . . . 3 . . . . . . . Reprogrammed . | . . . . . . . . . . . . . . . . . . . . . . Reused . | . . . . . . . . . . . . . . . . . . . . . . Traps Extracted . | . . . . . . . . . . . . . . . . . . . . . . Installed . | . . . . . . . . . . . . . . . . . . . . . . Triggered . | . . . . . . . . . . . . . . . . . . . . . . Machines | -11 -10 -10 -9 -9 -8 -7 -7 -7 -7 -6 -6 -5 -5 -5 -5 -5 -5 -5 -4 -4 -4 ---------- Run | Yrd Mat Min Mat Min Mat Fac Low Low Dat Pro Fac Fac Was Fac Ext Cet Arc Hub Fac Was Fac Machines Disabled 89 | . 4 . . . 3 25 . . . 1 1 . . . 1 1 4 6 3 . 40 Max in Single Turn 15 | . 1 . . . 1 15 . . . 1 1 . . . 1 1 1 3 1 . 13 Garrison Access 2 | . . . . . . . . . . . . . . . . . . . 1 . 1 Network Hub 2 | . . . . . . . . . . . . . . . . . . 2 . . . Machines Repaired . | . . . . . . . . . . . . . . . . . . . . . . Machines Dismantled 2 | . . . . . . . . . . . . . . . . . . . . . 2 Machines Sabotaged 1 | . . . . . . . . . . . . . . . . . . 1 . . . Overloaded Fab Kills . | . . . . . . . . . . . . . . . . . . . . . . Hacking | -11 -10 -10 -9 -9 -8 -7 -7 -7 -7 -6 -6 -5 -5 -5 -5 -5 -5 -5 -4 -4 -4 --------- Run | Yrd Mat Min Mat Min Mat Fac Low Low Dat Pro Fac Fac Was Fac Ext Cet Arc Hub Fac Was Fac Machines Accessed 62 | . 6 . 8 . 8 4 . . 4 1 3 1 . 3 3 2 1 1 6 . 11 Terminals 33 | . 4 . 5 . 7 . . . . . 2 . . 2 3 2 . 1 3 . 4 Fabricators 1 | . . . . . . 1 . . . . . . . . . . . . . . . Repair Stations 4 | . 1 . 1 . . . . . . . . . . . . . . . 1 . 1 Recycling Units 13 | . 1 . 2 . 1 3 . . . . 1 1 . . . . . . 1 . 3 Scanalyzers 3 | . . . . . . . . . . . . . . 1 . . . . . . 2 Garrison Access 2 | . . . . . . . . . . . . . . . . . . . 1 . 1 Total Hacks 211 | . 19 . 24 . 25 10 . . 23 1 7 2 . 12 4 4 8 1 33 . 38 Successful 130 | . 10 . 15 . 13 5 . . 23 1 3 2 . 4 . 2 8 1 19 . 24 Failed 81 | . 9 . 9 . 12 5 . . . . 4 . . 8 4 2 . . 14 . 14 Catastrophic 15 | . . . 4 . 2 . . . . . 1 . . 2 2 1 . . 1 . 2 Database Lockouts . | . . . . . . . . . . . . . . . . . . . . . . Manual 55 | . 1 . 3 . 11 2 . . . . 3 1 . 8 . . . 1 21 . 4 Terminals 104 | . 9 . 14 . 23 . . . . . 5 . . 9 4 4 . 1 21 . 14 Fabricators 2 | . . . . . . 2 . . . . . . . . . . . . . . . Repair Stations 27 | . 9 . 6 . . . . . . . . . . . . . . . 4 . 8 Recycling Units 29 | . 1 . 4 . 2 8 . . . . 2 2 . . . . . . 5 . 5 Scanalyzers 13 | . . . . . . . . . . . . . . 3 . . . . . . 10 Garrison Access 4 | . . . . . . . . . . . . . . . . . . . 3 . 1 Terminal Hacks 71 | . 3 . 8 . 11 . . . 23 1 1 . . 3 . 2 8 . 9 . 2 Record 19 | . . . 1 . . . . . 7 1 . . . . . 2 8 . . . . Part Schematic 9 | . . . . . . . . . 9 . . . . . . . . . . . . Robot Schematic 4 | . . . . . . . . . 4 . . . . . . . . . . . . Robot Analysis 1 | . . . 1 . . . . . . . . . . . . . . . . . . Prototype ID Bank 11 | . 1 . 1 . 3 . . . 3 . 1 . . 1 . . . . . . 1 Branch Access Points 3 | . . . 1 . 1 . . . . . . . . . . . . . 1 . . Emergency Access Points 1 | . . . . . 1 . . . . . . . . . . . . . . . . Terminal Index 2 | . 1 . . . . . . . . . . . . . . . . . 1 . . Repair Station Index 1 | . . . . . . . . . . . . . . . . . . . 1 . . Alert Level 2 | . . . . . 1 . . . . . . . . . . . . . 1 . . Unreport Threat 2 | . . . 1 . . . . . . . . . . . . . . . 1 . . Locate Traps 2 | . . . . . 1 . . . . . . . . 1 . . . . . . . Disarm Traps 1 | . . . . . . . . . . . . . . 1 . . . . . . . Hauler Manifests 4 | . . . 1 . 2 . . . . . . . . . . . . . 1 . . Registered Components 1 | . . . . . . . . . . . . . . . . . . . 1 . . Registered Prototypes 1 | . . . . . . . . . . . . . . . . . . . . . 1 Zone Layout 7 | . 1 . 2 . 2 . . . . . . . . . . . . . 2 . . Fabricator Hacks 1 | . . . . . . 1 . . . . . . . . . . . . . . . Network Status 1 | . . . . . . 1 . . . . . . . . . . . . . . . Repair Station Hacks 22 | . 6 . 4 . . . . . . . . . . . . . . . 4 . 8 Scan Component 11 | . 3 . 2 . . . . . . . . . . . . . . . 2 . 4 Repair 11 | . 3 . 2 . . . . . . . . . . . . . . . 2 . 4 Recycling Unit Hacks 17 | . 1 . 3 . 2 3 . . . . 1 1 . . . . . . 1 . 5 Report Inventory 11 | . 1 . 2 . 1 2 . . . . 1 1 . . . . . . 1 . 2 Retrieve Matter 1 | . . . . . . . . . . . . . . . . . . . . . 1 Retrieve Components 5 | . . . 1 . 1 1 . . . . . . . . . . . . . . 2 Scanalyzer 8 | . . . . . . . . . . . . . . 1 . . . . . . 7 Insert Component 4 | . . . . . . . . . . . . . . 1 . . . . . . 3 Analyze 4 | . . . . . . . . . . . . . . . . . . . . . 4 Garrison Access Hacks 2 | . . . . . . . . . . . . . . . . . . . 1 . 1 Seal Access 2 | . . . . . . . . . . . . . . . . . . . 1 . 1 Unauthorized Hacks 9 | . . . . . . 1 . . . . 1 1 . . . . . 1 4 . 1 Terminals 5 | . . . . . . . . . . . 1 . . . . . . 1 2 . 1 Track 1 | . . . . . . . . . . . 1 . . . . . . . . . . Assimilate 1 | . . . . . . . . . . . . . . . . . . . . . 1 Botnet 2 | . . . . . . . . . . . . . . . . . . . 2 . . Sabotage 1 | . . . . . . . . . . . . . . . . . . 1 . . . Fabricators 1 | . . . . . . 1 . . . . . . . . . . . . . . . Liberate 1 | . . . . . . 1 . . . . . . . . . . . . . . . Repair Stations . | . . . . . . . . . . . . . . . . . . . . . . Recycling Units 3 | . . . . . . . . . . . . 1 . . . . . . 2 . . Monitor 1 | . . . . . . . . . . . . . . . . . . . 1 . . Recyclers 2 | . . . . . . . . . . . . 1 . . . . . . 1 . . Scanalyzers . | . . . . . . . . . . . . . . . . . . . . . . Garrison Access . | . . . . . . . . . . . . . . . . . . . . . . Data Cores Recovered 3 | . 1 . 1 . 1 . . . . . . . . . . . . . . . . Used 1 | . 1 . . . . . . . . . . . . . . . . . . . . Hacking Detections 41 | . 6 . 6 . 7 5 . . . . 3 . . 3 3 1 . . 2 . 5 Full Trace Events 6 | . . . 1 . 1 . . . . . . . . 3 1 . . . . . . Feedback Events . | . . . . . . . . . . . . . . . . . . . . . . Feedback Blocked . | . . . . . . . . . . . . . . . . . . . . . . Robot Schematics Acquired 4 | . . . . . . . . . 4 . . . . . . . . . . . . Robots Built . | . . . . . . . . . . . . . . . . . . . . . . Authchips . | . . . . . . . . . . . . . . . . . . . . . . Time . | . . . . . . . . . . . . . . . . . . . . . . Total Robot Build Rating . | . . . . . . . . . . . . . . . . . . . . . . Part Schematics Acquired 10 | . . . . . . . . . 9 . . . . . . . . . . . 1 Parts Built . | . . . . . . . . . . . . . . . . . . . . . . Authchips . | . . . . . . . . . . . . . . . . . . . . . . Time . | . . . . . . . . . . . . . . . . . . . . . . Total Part Build Rating . | . . . . . . . . . . . . . . . . . . . . . . Parts Repaired 11 | . 3 . 2 . . . . . . . . . . . . . . . 2 . 4 Time 527 | . 90 . 58 . . . . . . . . . . . . . . . 121 . 258 Parts Recycled . | . . . . . . . . . . . . . . . . . . . . . . Recycled Matter . | . . . . . . . . . . . . . . . . . . . . . . Retrieved Matter 225 | . . . . . . . . . . . . . . . . . . . . . 225 Retrieved Components 20 | . . . 7 . 1 2 . . . . . . . . . . . . . . 10 Parts Scanalyzed 3 | . . . . . . . . . . . . . . 1 . . . . . . 2 Part Schematics Acquired 1 | . . . . . . . . . . . . . . . . . . . . . 1 Parts Damaged . | . . . . . . . . . . . . . . . . . . . . . . Bothacking | -11 -10 -10 -9 -9 -8 -7 -7 -7 -7 -6 -6 -5 -5 -5 -5 -5 -5 -5 -4 -4 -4 ------------ Run | Yrd Mat Min Mat Min Mat Fac Low Low Dat Pro Fac Fac Was Fac Ext Cet Arc Hub Fac Was Fac Used RIF Installer . | . . . . . . . . . . . . . . . . . . . . . . Robots Hacked . | . . . . . . . . . . . . . . . . . . . . . . Non-combat . | . . . . . . . . . . . . . . . . . . . . . . Combat . | . . . . . . . . . . . . . . . . . . . . . . Robot Hacks Applied . | . . . . . . . . . . . . . . . . . . . . . . Relay Couplers Released 5 | . . . . . . . . . . . . . . . . . . . 3 . 2 Machine Destruction 2 | . . . . . . . . . . . . . . . . . . . . . 2 Programmers 3 | . . . . . . . . . . . . . . . . . . . 3 . . Fabnet Peak Effective % . | . . . . . . . . . . . . . . . . . . . . . . Robots Rewired 1 | . . . . . . . . . . . . . . . 1 . . . . . . Allies Hacked . | . . . . . . . . . . . . . . . . . . . . . . Hacks Repelled . | . . . . . . . . . . . . . . . . . . . . . . Allies | -11 -10 -10 -9 -9 -8 -7 -7 -7 -7 -6 -6 -5 -5 -5 -5 -5 -5 -5 -4 -4 -4 -------- Run | Yrd Mat Min Mat Min Mat Fac Low Low Dat Pro Fac Fac Was Fac Ext Cet Arc Hub Fac Was Fac Total Allies 42 | . . . . 3 . 15 . . . 1 . . 18 . 4 . . . . . 1 Largest Group 18 | . . . . 3 . 7 . . . 1 1 . 18 9 12 9 2 1 . . 1 Highest-Rated Group 638 | . . . . 40 . 132 . . . 96 96 . 638 368 435 316 50 19 . . 26 Highest-Rated Ally 96 | . . . . 16 . 31 . . . 96 96 . 50 46 46 46 26 19 . . 26 Total Orders 6 | . . . . 1 . 5 . . . . . . . . . . . . . . . ROAM 1 | . . . . 1 . . . . . . . . . . . . . . . . . EXPLORE 3 | . . . . . . 3 . . . . . . . . . . . . . . . RETURN 2 | . . . . . . 2 . . . . . . . . . . . . . . . Ally Attacks 413 | . . . . 6 . 29 . . . 4 10 . 165 15 140 44 . . . . . Total Damage 10946 | . . . . 74 . 376 . . . 141 361 . 4655 500 3863 976 . . . . . Kills 54 | . . . . . . 6 . . . 2 . . 12 6 25 3 . . . . . Allies Corrupted 3 | . . . . . . . . . . . . . 2 . 1 . . . . . . Allies Melted . | . . . . . . . . . . . . . . . . . . . . . . Intel | -11 -10 -10 -9 -9 -8 -7 -7 -7 -7 -6 -6 -5 -5 -5 -5 -5 -5 -5 -4 -4 -4 ------- Run | Yrd Mat Min Mat Min Mat Fac Low Low Dat Pro Fac Fac Was Fac Ext Cet Arc Hub Fac Was Fac Active Infowar (turns) 7961 | . . . . . 510 1077 795 712 208 1150 527 351 605 327 421 . . . 1074 20 184 Sensors 5953 | . . . . . . . 795 712 208 1150 527 351 605 327 421 . . . 673 . 184 Seismic 2681 | . . . . . 510 1077 . . . . . . . . . . . . 1074 20 . Cloaking 183 | . . . . . . . . . . . . . . . . . . . 163 20 . Robot Analysis Total 1 | . . . 1 . . . . . . . . . . . . . . . . . . Derelict Logs Recovered 7 | . . 1 . 1 . . 3 . . 2 . . . . . . . . . . . Drone Launches 4 | . . . . . . 4 . . . . . . . . . . . . . . . Drone Recoveries 4 | . . . . . . 4 . . . . . . . . . . . . . . . Exploration | -11 -10 -10 -9 -9 -8 -7 -7 -7 -7 -6 -6 -5 -5 -5 -5 -5 -5 -5 -4 -4 -4 ------------- Run | Yrd Mat Min Mat Min Mat Fac Low Low Dat Pro Fac Fac Was Fac Ext Cet Arc Hub Fac Was Fac Turns Passed 21926 | 93 1709 837 1761 1969 1534 1427 1149 747 208 2409 621 351 845 327 1097 359 442 654 1148 78 2161 Spaces Moved 9957 | 71 863 510 637 770 648 632 433 307 87 794 299 190 605 185 609 165 196 192 502 119 1143 Core 929 | 9 . . . . . . . . . 352 240 . . . . . . . . 114 214 Treads 7465 | . 741 510 637 770 648 632 433 307 87 442 . . 343 185 609 165 196 192 502 5 61 Legs 219 | 62 122 . . . . . . . . . . . . . . . . . . . 35 Wheels 832 | . . . . . . . . . . . . . . . . . . . . . 832 Hover 48 | . . . . . . . . . . . . 47 . . . . . . . . 1 Flight 464 | . . . . . . . . . . . 59 143 262 . . . . . . . . Fastest Speed 32 | 50 120 160 160 240 154 154 236 240 240 50 32 112 32 160 160 160 160 160 160 50 50 Average Speed 179 | 111 154 160 221 240 180 174 243 240 240 276 185 179 113 160 160 160 161 161 170 61 112 Slowest Speed 1950 | 120 160 160 240 240 240 320 320 240 240 1950 250 212 192 160 160 160 162 163 320 320 1350 Overloaded Moves . | . . . . . . . . . . . . . . . . . . . . . . Propulsion Burnouts . | . . . . . . . . . . . . . . . . . . . . . . Robots Hopped . | . . . . . . . . . . . . . . . . . . . . . . Potential Cave-ins 2 | . . . . . . . . . . . . . 2 . . . . . . . . Cave-ins Triggered 1 | . . . . . . . . . . . . . . . 1 . . . . . . Exploration Rate (%) 51 | 5 95 92 48 98 47 25 67 54 69 82 7 6 97 7 69 62 82 18 14 72 23 Regions Visited 21 Branch Regions 10 Pre-discovered Areas 4 | . . 2 . . . . 1 . 1 . . . . . . . . . . . . Known Exits Taken 7 | . . . 1 1 . . 1 1 1 . 1 . . 1 . . . . . . . Unknown Exits Taken 10 | 1 1 1 . . 1 1 . . . 1 . . . . 1 1 1 1 . . . Scrap Searched 7 | . . 1 . 1 . . 2 1 . 2 . . . . . . . . . . . Spaces Dug 123 | . . . 1 29 1 11 . . . 9 2 1 7 5 2 . . 27 13 . 15 Terrain Destroyed 1251 | . 53 . 19 133 106 191 . . . 52 2 1 7 5 91 5 8 263 53 . 262 Melee 54 | . . . . . . . . . . 9 2 1 7 5 2 . . 3 13 . 12 Projectile 85 | . . . 9 . 2 . . . . 1 . . . . . 5 8 22 14 . 24 AOE 1112 | . 53 . 10 133 104 191 . . . 42 . . . . 89 . . 238 26 . 226 Terrain Rammed 1 | . . . . . . 1 . . . . . . . . . . . . . . . Walls Destroyed . | . . . . . . . . . . . . . . . . . . . . . . Machines Disabled 1 | . . . . . . 1 . . . . . . . . . . . . . . . Actions | -11 -10 -10 -9 -9 -8 -7 -7 -7 -7 -6 -6 -5 -5 -5 -5 -5 -5 -5 -4 -4 -4 --------- Run | Yrd Mat Min Mat Min Mat Fac Low Low Dat Pro Fac Fac Was Fac Ext Cet Arc Hub Fac Was Fac Total 12553 | 82 1120 521 826 860 840 823 489 316 88 931 347 198 744 202 688 233 261 395 719 127 1743 Wait 1046 | . 133 . 53 34 13 43 2 . . 59 4 . 75 7 13 34 29 79 137 . 331 Move 9938 | 70 862 509 636 769 647 631 432 306 86 793 298 190 604 184 608 164 195 191 502 118 1143 Hop . | . . . . . . . . . . . . . . . . . . . . . . Pick Up 153 | 6 20 3 17 7 16 8 4 4 . 8 6 1 12 3 6 5 3 . 7 1 16 Fast Attach 152 | 6 10 . 5 3 8 5 5 . . 6 12 3 10 . 3 4 1 16 10 . 45 Attach 64 | . 2 1 4 1 2 9 6 . . 6 3 1 6 . 1 1 . 6 7 . 8 Detach 53 | . 3 . 3 3 1 3 3 . . 1 5 . 11 . 1 . . 6 3 1 9 Swap 158 | . 8 . 9 14 31 23 13 5 . 13 3 1 2 1 9 4 5 10 2 . 5 Drop 171 | . 17 2 13 12 27 8 2 1 2 8 8 1 12 1 14 9 3 7 1 7 16 Fire 572 | . 63 6 81 17 88 73 20 . . 21 . . . . 10 8 17 62 27 . 79 Melee 176 | . . . . . . . . . . 14 8 1 12 6 16 4 8 15 21 . 71 Ram 2 | . . . . . . 1 . . . . . . . . . . . . . . 1 Kick . | . . . . . . . . . . . . . . . . . . . . . . Crush 42 | . 2 . 5 . 7 19 2 . . 2 . . . . . . . 3 2 . . Escape Stasis . | . . . . . . . . . . . . . . . . . . . . . . Rewire 7 | . . . . . . . . . . . . . . . 7 . . . . . . Trap . | . . . . . . . . . . . . . . . . . . . . . . Miscellaneous 19 | . . . . . . . . . . . . . . . . . . . . . 19 Route ------- -11/Scrapyard -10/Materials (discovered 4 exits: *Mat x3 / [*Min]) -10/Mines (discovered 3 exits: *Mat x2 / [*Exi]) -9/Materials (discovered 3 exits: *Mat / *Min x2) -9/Mines (discovered 2 exits: *Mat x2) -8/Materials -7/Factory -7/Lower Caves -7/Lower Caves -7/Data Miner -6/Proximity Caves -6/Factory -5/Factory -5/Waste -5/Factory -5/Extension (discovered 2 exits: *Fac / *Cet) -5/Cetus -5/Archives (discovered 3 exits: *Fac / *Hub x2) -5/Hub_04(d) -4/Factory (discovered 3 exits: [*Res] / Upp x2) -4/Waste -4/Factory (discovered 1 exit: *Upp) History --------- Turn | Location | Event 3 | -11/Scrapyard | Discovered new exit (range 16) 94 | -11/Scrapyard | Entered Materials 318 | -10/Materials | Build established: Mutant 344 | -10/Materials | Discovered new exit (range 12) 826 | -10/Materials | Discovered new exit (range 10) 1080 | -10/Materials | Discovered new exit (range 10) 1294 | -10/Materials | Repaired Lgt. Nuclear Core 1322 | -10/Materials | Repaired Lgt. Treads 1349 | -10/Materials | Repaired EM Pulse Gun 1547 | -10/Materials | Discovered new exit (range 16) 1803 | -10/Materials | Entered Mines 1832 | -10/Mines | Met a Derelict bent on vengeance 1874 | -10/Mines | Found a hidden stash of uninstalled traps 2230 | -10/Mines | Discovered new exit (range 8) 2526 | -10/Mines | Learned location of Storage (-7) 2531 | -10/Mines | A weapon hastily lodged in a ceiling crevice suddenly fell to the ground 2537 | -10/Mines | Discovered new exit (range 11) 2595 | -10/Mines | Deemed a non-threat by the Exiles lab entrance 2595 | -10/Mines | Discovered new exit (range 5) 2640 | -10/Mines | Entered Materials 2640 | -9/Materials | Evolved 2 slots: Propulsion x2 2750 | -9/Materials | Repaired Lgt. Treads? 2878 | -9/Materials | Identified exit to Mines 3130 | -9/Materials | Repaired Imp. Light Cannon 4258 | -9/Materials | Discovered new exit (range 16) 4401 | -9/Materials | Entered Mines 4477 | -9/Mines | Found DCF Scrap (13 items) 4562 | -9/Mines | Assisted by bots powering up and referring to "LRC-V3" 4590 | -9/Mines | Assembled infested the area 4595 | -9/Mines | Assisted by a Guerilla fighting off Assembled 4613 | -9/Mines | Identified exit to Materials 4666 | -9/Mines | Lost 4 allies 4743 | -9/Mines | Received a Rocket Launcher from a helpful Derelict 5102 | -9/Mines | Discovered exit to Materials (range 8) 5949 | -9/Mines | Joined a pair of Derelicts in attacking an 0b10 outpost 6370 | -9/Mines | Entered Materials 6370 | -8/Materials | Evolved 2 slots: Propulsion x1, Utility x1 7896 | -8/Materials | Discovered new exit (range 6) 7904 | -8/Materials | Entered Factory 7904 | -7/Factory | Evolved 2 slots: Utility x2 8704 | -7/Factory | First assault squad dispatched 8999 | -7/Factory | System corruption reached 10% 9029 | -7/Factory | Lost 4 parts (2n2u) 9160 | -7/Factory | Discovered new exit (range 8) 9331 | -7/Factory | Entered Lower Caves 9357 | -7/Lower Caves | Learned 4 Factory zone layouts 9856 | -7/Lower Caves | Learned location of Zion (-6) 10027 | -7/Lower Caves | Core integrity fell below 50% 10041 | -7/Lower Caves | Lost 5 parts (1p1n3u) 10178 | -7/Lower Caves | Identified exit to Lower Caves 10234 | -7/Lower Caves | Entered a destroyed Warlord outpost 10480 | -7/Lower Caves | Entered another Lower Caves area 11205 | -7/Lower Caves | Discovered new exit (range 9) 11224 | -7/Lower Caves | Identified exit to Data Miner 11227 | -7/Lower Caves | Entered Data Miner 11229 | -7/Data Miner | Discovered new exit (range 6) 11274 | -7/Data Miner | Met Data Miner 11317 | -7/Data Miner | Learned location of Section 7 (-3) 11317 | -7/Data Miner | Acquired the access code to Warlord's prototype stash 11370 | -7/Data Miner | Received God Mode back door access code from Data Miner 11425 | -7/Data Miner | Identified exit to Proximity Caves 11435 | -7/Data Miner | Entered Proximity Caves 11739 | -6/Proximity Caves | Received a Behemoth hack from an annoying Tinkerer 11818 | -6/Proximity Caves | Spotted B-75 Beast 12446 | -6/Proximity Caves | Learned Factory terminal intel 12495 | -6/Proximity Caves | Found Alien Artifact 12628 | -6/Proximity Caves | Lost 4 parts (2n1u1w) 13621 | -6/Proximity Caves | Released all parts (4) 13625 | -6/Proximity Caves | Escorted by Enhanced Grunt 13651 | -6/Proximity Caves | Lost 5 parts (1n4u) 13813 | -6/Proximity Caves | Discovered new exit (range 11) 13819 | -6/Proximity Caves | Learned Factory garrison access intel 13844 | -6/Proximity Caves | Entered Factory 13844 | -6/Factory | Accompanied by 1 ally 13844 | -6/Factory | Evolved 2 slots: Utility x1, Weapon x1 13846 | -6/Factory | Loaded intel: 26 terminal locations 13847 | -6/Factory | Loaded intel: 4 garrison access locations 14426 | -6/Factory | Discovered new exit (range 6) 14438 | -6/Factory | Identified exit to Factory 14465 | -6/Factory | Entered another Factory area 14465 | -5/Factory | Evolved 2 slots: Propulsion x1, Weapon x1 14816 | -5/Factory | Sucked down chute 14816 | -5/Factory | Entered Waste 14854 | -5/Waste | Found Prototype Launcher 14854 | -5/Waste | Identified Point Singularity Launcher 14867 | -5/Waste | Spotted C-40 Crusher 14924 | -5/Waste | Spotted C-40 Crusher 14924 | -5/Waste | Spotted C-40 Crusher 14943 | -5/Waste | Spotted C-40 Crusher 14955 | -5/Waste | Warlord forces began an assault 15027 | -5/Waste | Allies destroyed C-40 Crusher 15044 | -5/Waste | Spotted C-40 Crusher 15051 | -5/Waste | Allies destroyed C-40 Crusher 15078 | -5/Waste | Spotted C-40 Crusher 15083 | -5/Waste | Allies destroyed C-40 Crusher 15099 | -5/Waste | Allies destroyed C-40 Crusher 15102 | -5/Waste | Allies destroyed C-40 Crusher 15109 | -5/Waste | Found Damper Plating 15113 | -5/Waste | Allies destroyed C-40 Crusher 15144 | -5/Waste | Lost 7 allies 15193 | -5/Waste | Discovered new exit (range 15) 15655 | -5/Waste | Identified exit to Factory 15661 | -5/Waste | Entered Factory 15661 | -5/Factory | Accompanied by 9 allies 15962 | -5/Factory | Discovered new exit (range 11) 15976 | -5/Factory | Identified exit to Extension 15988 | -5/Factory | Entered Extension 15988 | -5/Extension | Accompanied by 9 allies 16105 | -5/Extension | Rescued a captive Derelict 16161 | -5/Extension | Rescued a captive Derelict 16224 | -5/Extension | Allied Derelicts emerged from ambush trap array 16244 | -5/Extension | Rescued a captive Derelict 16371 | -5/Extension | Build established: Scavenger-Mutant 16409 | -5/Extension | Crushed by falling debris 16813 | -5/Extension | Spotted B-75 Beast 16830 | -5/Extension | Allies destroyed B-75 Beast 16849 | -5/Extension | Spotted B-75 Beast 16881 | -5/Extension | Allies destroyed B-75 Beast 16888 | -5/Extension | First assault squad dispatched 16888 | -5/Extension | Lost 4 allies 16908 | -5/Extension | Incoming assault squad redirected 16988 | -5/Extension | Disrupted transfer network 17050 | -5/Extension | Discovered new exit (range 16) 17052 | -5/Extension | Discovered new exit (range 15) 17085 | -5/Extension | Entered Cetus 17085 | -5/Cetus | Accompanied by 9 allies 17114 | -5/Cetus | Spotted Cetus Guard 17115 | -5/Cetus | Spotted Cetus Guard 17120 | -5/Cetus | Spotted Cetus Guard 17130 | -5/Cetus | Spotted Cetus Guard 17137 | -5/Cetus | Allies destroyed Cetus Guard 17141 | -5/Cetus | Allies destroyed Cetus Guard 17153 | -5/Cetus | Allies destroyed Cetus Guard 17159 | -5/Cetus | Destroyed Cetus Guard 17190 | -5/Cetus | Lost 7 allies 17310 | -5/Cetus | Found a strange terminal 17352 | -5/Cetus | Build established: Scavenger-Tank 17417 | -5/Cetus | Discovered new exit (range 15) 17444 | -5/Cetus | Entered Archives 17444 | -5/Archives | Accompanied by 2 allies 17588 | -5/Archives | Discovered new exit (range 16) 17637 | -5/Archives | Discovered new exit (range 16) 17659 | -5/Archives | Unable to access archive contents 17732 | -5/Archives | Discovered new exit (range 16) 17886 | -5/Archives | Entered Hub_04(d) 17886 | -5/Hub_04(d) | Accompanied by 1 ally 18159 | -5/Hub_04(d) | Discovered new exit (range 8) 18404 | -5/Hub_04(d) | Network Hub disabled 18420 | -5/Hub_04(d) | Network Hub disabled 18421 | -5/Hub_04(d) | Incoming investigation squad redirected 18424 | -5/Hub_04(d) | Spotted Lightning 18424 | -5/Hub_04(d) | Spotted Lightning 18428 | -5/Hub_04(d) | Spotted Lightning 18436 | -5/Hub_04(d) | System corruption reached 10% 18464 | -5/Hub_04(d) | Destroyed Lightning 18476 | -5/Hub_04(d) | Destroyed Lightning 18486 | -5/Hub_04(d) | First assault squad dispatched 18489 | -5/Hub_04(d) | Lost 7 parts (3n3u1w) 18516 | -5/Hub_04(d) | Incoming assault squad redirected 18536 | -5/Hub_04(d) | Destroyed 13 combat bots 18540 | -5/Hub_04(d) | Entered Factory 18540 | -4/Factory | Evolved 2 slots: Utility x2 18547 | -4/Factory | Lost 4 parts (1n1u2w) 18791 | -4/Factory | Build established: Scavenger-Mutant 18882 | -4/Factory | Discovered new exit (range 16) 18884 | -4/Factory | Identified exit to Upper Caves 19485 | -4/Factory | Lost 5 parts (1n3u1w) 19653 | -4/Factory | Repaired Broken Imp. Heavy Siege Treads 19680 | -4/Factory | Repaired Hcp. Storage Unit 19688 | -4/Factory | Sucked down chute 19688 | -4/Factory | Entered Waste 19703 | -4/Waste | EMP discharged 19703 | -4/Waste | System corruption reached 10% 19703 | -4/Waste | Spotted C-40 Crusher 19723 | -4/Waste | Spotted C-40 Crusher 19726 | -4/Waste | Spotted C-40 Crusher 19728 | -4/Waste | Spotted C-40 Crusher 19737 | -4/Waste | Spotted C-40 Crusher 19742 | -4/Waste | Spotted C-40 Crusher 19760 | -4/Waste | Discovered new exit (range 11) 19766 | -4/Waste | Identified exit to Factory 19766 | -4/Waste | Entered Factory 19900 | -4/Factory | Discovered exit to Upper Caves (range 13) 20213 | -4/Factory | Build established: Hacker-Skirmisher 20407 | -4/Factory | Destroyed 7 combat bots 20863 | -4/Factory | Repaired Force Lance 20972 | -4/Factory | Repaired Centrium Medium Armor Plating 21035 | -4/Factory | Repaired Shield Leg 21063 | -4/Factory | Repaired Lgt. Ion Engine 21084 | -4/Factory | Build established: Hacker-Mutant 21428 | -4/Factory | Lost 3 parts (1n2u) 21547 | -4/Factory | Spotted B-86 Titan 21629 | -4/Factory | Garrison activated, responded to threat 21664 | -4/Factory | System corruption reached 30% 21667 | -4/Factory | Core integrity fell below 50% 21735 | -4/Factory | Lost 3 parts (3n) 21774 | -4/Factory | Core integrity fell below 20% 21790 | -4/Factory | Lost 3 parts (2n1w) 21873 | -4/Factory | Lost 4 parts (1p1n2u) 21887 | -4/Factory | Released all parts (9) 21916 | -4/Factory | Lost 3 parts (1n2w) 21927 | -4/Factory | Destroyed by G-67 Veteran with Plasma Rifle Last Messages --------------- 21887_ Released Imp. Hacking Suite. 21887_ Released Adv. Signal Interpreter. 21887_ Released Adv. Targeting Computer. 21887_ Released Hcp. Storage Unit. 21887_ Released Force Lance. 21887_ Released Lgt. Antimatter Cannon. 21887_ Dropped Broken Point Singularity Launcher. 21887_ Dropped Hardcell Cannon. 21888_ Acquired Centrium Medium Armor Plating. 21890_ U-05 Engineer builds a Wall. 21890_ Acquired Force Lance. 21893_ U-05 Engineer lays Concrete. 21894_ U-05 Engineer builds a Wall. 21894_ Penetrated by Slug. 21895_ System corrupted: Heat flow error (+229). 21896_ The unstable cave ceiling collapses. 21896_ U-05 Engineer lays Concrete. 21897_ Penetrated by Slug. 21910_ System corrupted: Component data lost. 21925_ System corrupted: Matter fused (-5). Map ----- +----------------------------------------------------+ | #?????????????????# """ """ """ """ #???????? | | """ ###########??##???# """ """ """ """ #???????? | | "R" ## ?!#???# """ """ """ """ #?????##? | | " " ## """" """" #???# ###### ## | | ## """" """" #???# + | | ## """" """" #???# ##### | | ###### " "" """" #???# #???# | | ###### #???# #??# | | ! + !!! #???##########+### # ### # | | ###### !! ####### #?# % !! | | ###### !! # ### !! | | ## #?### # # !! | | ## ### # # # # | | ## = # # ##= | | "" ########+################ | | "" #???# % | | "" #???# #################+### | | #??## ## # #### | | ######## #### %[!"" #??? | | # #?## =%Y"#?? T#??? | | ==# #??# = ""#?? #??? | | = +== #??# [ * #??? #???? | | #= #??# !* #?????? ????? | | #! #??# # ????????? | | # ^ ^^^#??#####;############# ?? ?????? | | # #?????###@ # ?? ????? | | # #???????# # ? ????? | | # #???????# # ? ?????? | | + #???????# # ??????? | | # #???????# # """??????? | | # #???????# k + """??????? | | ######### #???????# # """??????? | | ????????# #???????# # ??????? | | ???????? ???????# # "????????? | | ???????? ???????# #???????????? | | ???????? #??????# g #???????????? | | ???????? ?????????# #???????????? | | ???????? ???????????###########/##??""???????? | | ??????????????????????????????????# #?? """ "????? | | ??????????????????????????????????# #?? """ ""???? | | ??????????????????????????????????# #? ??? | | ??????????????????????????????????# ##! ! ??? | | ??????????????????????????????????# # ??? | | ??????????????????????????????????# # # # ?? | | ????????????????????????????????### # =# ?? | | ????????????????????????########### #### # | | ????????????????????"" ## ### ### ? | | ????????????????????"" + % + ? | | ???????????????????????## % ####### | | ????????????????????????# #### ###### # # ? | +----------------------------------------------------+ Best States ------------- Heat Dissipation 70 Coolant Potential 65 Energy Generation 23 Energy Capacity 325 Matter Stores 300 Matter Capacity 300 Sight Range 16 Robot Scan Range 16 Terrain Scan Density 10 Cloak Strength 3 Additional Mass Support 9 Armor Coverage 3200 Resistance: KI 20 Resistance: TH 20 Resistance: EM 90 Propulsion Shielding 33 Weapon Shielding 66 Evasion (%) 63 Targeting Accuracy 16 Target Analysis 6 Recoil Reduction 9 Kinecelleration 40 Offensive Hacking 24 Defensive Hacking 14 Item Schematics ----------------- Combat Drone Bay | -7/Data Miner | Free Lgt. Regenerative Plating | -7/Data Miner | Free Cld. Aerolev Unit | -7/Data Miner | Free Exp. Targeting Computer | -7/Data Miner | Free Antimatter Cannon | -7/Data Miner | Free Thunder Leg | -7/Data Miner | Free Imp. Dynamic Insulation System | -7/Data Miner | Free Lrn. Proton Cannon | -7/Data Miner | Free Variable Charge Gun | -7/Data Miner | Free Point Singularity Launcher | -4/Factory | Scanalyzed Robot Schematics ------------------ M-22 Extractor | -7/Data Miner | Free S-27 Virus | -7/Data Miner | Free X-62 Marksman | -7/Data Miner | Free L-41 Fighter | -7/Data Miner | Free Fabricated ------------ Nothing Repaired ---------- Lgt. Nuclear Core | 14% | -10/Materials Lgt. Treads | 44% | -10/Materials EM Pulse Gun | 51% | -10/Materials Lgt. Treads | 71% | -9/Materials Imp. Light Cannon | 21% | -9/Materials Imp. Heavy Siege Treads | 6% | -4/Factory | Broken Hcp. Storage Unit | 16% | -4/Factory Force Lance | 23% | -4/Factory Centrium Medium Armor Plating | 42% | -4/Factory Shield Leg | 10% | -4/Factory Lgt. Ion Engine | 12% | -4/Factory Alien Tech Used ----------------- None Achievements -------------- None Challenges ------------ None Game ------ Seed ArmorElectrostormThrower Manual? 0 Play Time 02:20:21 Cumulative 205.7 hours Start 2025.05.06 @ 13:46:23 End 2025.05.06 @ 16:19:15 Sessions 3 Manual Loads 0 Difficulty Rogue Special Mode None Game No. 211 Rogue 211 Adventurer 0 Explorer 0 Win Type - Total 3 Types 3/0/0/0/0/0/0/0/0/0 Lore% 70 Gallery% 69 Achievement% 66 Wizard Run 0 Options --------- Layout 0 ASCII 1 Keyboard 1 Movement Numpad Keybinds 0 Fullscreen 2 Font 16/SmallcapsGlow Map View 88x55 Zoom Use 0% Tactical HUD 1 Map Filters NONE Filters NONE Steam 1 RUN: 75842ce1-52ba-46fa-936f-5c0b1eb43d4d